bitfinex-derivatives/quotes_BTCF0:USTF0_20250812
["timestamp","ask_amount","ask_price","bid_price","bid_amount"]
[1755036373759,0.112,119800.0,119790.0,1.77470712]
[1755036374655,0.001,119800.0,119790.0,1.77370712]
[1755036374856,0.37969521,119820.0,119810.0,0.12106]
[1755036375159,0.49969521,119820.0,119810.0,1.41077332]
[1755036375462,0.49969521,119820.0,119810.0,1.0497362]
[1755036375655,0.49969521,119820.0,119810.0,1.41077332]
[1755036376052,0.121,119820.0,119810.0,1.77157332]
[1755036376455,0.3608,119840.0,119830.0,0.1800923]
[1755036376649,0.11,119840.0,119830.0,1.66018182]
[1755036376854,0.11,119840.0,119830.0,2.02098182]
[1755036377060,0.11,119840.0,119830.0,1.66018182]
[1755036377857,0.401737,119860.0,119850.0,0.1882783]
[1755036378057,0.6053084,119860.0,119850.0,1.0461483]
[1755036378356,0.6384284,119860.0,119850.0,1.0441483]
[1755036378746,0.554987,119860.0,119850.0,1.0441483]
[1755036378951,0.6384284,119860.0,119850.0,1.0441483]
[1755036379452,0.554987,119860.0,119850.0,1.0451483]
[1755036379760,0.6384284,119860.0,119850.0,1.0451483]
[1755036380553,0.97695552,119860.0,119850.0,0.0854483]
[1755036380751,1.00046552,119860.0,119850.0,0.1098783]
[1755036380954,1.00046552,119860.0,119850.0,0.1444383]
[1755036381357,1.00046552,119860.0,119850.0,0.006]
[1755036382461,0.6211014,119860.0,119850.0,0.0894483]
[1755036382659,0.98213852,119860.0,119850.0,0.1138783]
[1755036383557,0.98213852,119860.0,119850.0,0.0894483]
[1755036383961,1.00080976,119860.0,119850.0,0.006]
[1755036388171,1.00080976,119860.0,119850.0,0.0894488]
[1755036390073,0.99980976,119860.0,119850.0,0.0834488]
[1755036390272,1.00080976,119860.0,119850.0,0.0864488]
[1755036391171,1.00080976,119860.0,119850.0,0.1572188]
[1755036391370,0.61626264,119860.0,119850.0,0.2053488]
[1755036391570,0.5975918,119860.0,119850.0,0.56638592]
[1755036392474,0.5975918,119860.0,119850.0,0.2053488]
[1755036393463,0.95862892,119860.0,119850.0,0.2053488]
[1755036393669,0.95862892,119860.0,119850.0,1.0407488]
[1755036393670,0.98301892,119860.0,119850.0,1.0407488]
[1755036393973,0.98301892,119860.0,119850.0,0.1219]
[1755036394173,0.98301892,119860.0,119850.0,0.9204888]
[1755036394372,0.98301892,119860.0,119850.0,0.0864488]
[1755036394573,0.98301892,119860.0,119850.0,0.2050688]
[1755036394768,0.6219818,119860.0,119850.0,0.2050688]
[1755036394977,0.51415,119860.0,119850.0,0.56610592]
[1755036395171,0.5975919,119860.0,119850.0,0.2050688]
[1755036395371,0.5975919,119860.0,119850.0,0.56610592]
[1755036395572,0.5975919,119860.0,119850.0,0.2050688]
[1755036398379,0.51415,119860.0,119850.0,0.2050688]
[1755036398575,0.51415,119860.0,119850.0,0.56610592]
[1755036398774,0.51025,119860.0,119850.0,0.56610592]
[1755036400281,0.51415,119860.0,119850.0,0.56610592]
[1755036400575,0.5764619,119860.0,119850.0,0.56610592]
[1755036400780,0.6205919,119860.0,119850.0,0.56610592]
[1755036400974,0.6205919,119860.0,119850.0,0.2050688]
[1755036402581,0.6205919,119860.0,119850.0,1.0349488]
[1755036402784,0.98162902,119860.0,119850.0,1.0349488]
[1755036402982,0.6205919,119860.0,119850.0,1.0349488]
[1755036404675,0.5962019,119860.0,119850.0,0.2050688]
[1755036404877,0.98162902,119860.0,119850.0,0.1569388]
[1755036405074,0.98162902,119860.0,119850.0,0.0864488]
[1755036405678,0.98162902,119860.0,119850.0,0.1569388]
[1755036405877,0.6205919,119860.0,119850.0,0.2050688]
[1755036407679,0.63922882,119860.0,119850.0,0.2050688]
[1755036407880,0.63922882,119860.0,119850.0,0.1415988]
[1755036408082,1.00026594,119860.0,119850.0,0.1415988]
[1755036409381,1.00026594,119860.0,119850.0,0.1186588]
[1755036409581,1.00026594,119860.0,119850.0,0.1090088]
[1755036410384,0.63922882,119860.0,119850.0,0.1090088]
[1755036410684,1.00026594,119860.0,119850.0,0.1090088]
[1755036411482,1.00026594,119860.0,119850.0,0.003]
[1755036411673,1.82682594,119860.0,119850.0,0.003]
[1755036412688,1.82682594,119860.0,119850.0,0.0864488]
[1755036413386,1.82682594,119860.0,119850.0,0.003]
[1755036417792,1.82682594,119860.0,119850.0,0.0864489]
[1755036417998,1.82682594,119860.0,119850.0,0.1090089]
[1755036418299,1.00026594,119860.0,119850.0,0.1090089]
[1755036418502,0.63922882,119860.0,119850.0,0.2050689]
[1755036418798,1.00026594,119860.0,119850.0,0.2050689]
[1755036419506,1.00026594,119860.0,119850.0,0.2039389]
[1755036422604,0.63922882,119860.0,119850.0,0.2039389]
[1755036422805,1.00026594,119860.0,119850.0,0.2039389]
[1755036423708,0.99919594,119860.0,119850.0,0.2039389]
[1755036424209,0.63815882,119860.0,119850.0,0.2039389]
[1755036424410,0.61483882,119860.0,119850.0,0.2039389]
[1755036424707,0.63815882,119860.0,119850.0,0.2039389]
[1755036425307,0.4718,119860.0,119850.0,0.56497602]
[1755036425906,0.6209219,119860.0,119850.0,0.2020789]
[1755036426208,0.98195902,119860.0,119850.0,0.2020789]
[1755036426604,0.6209219,119860.0,119850.0,0.2020789]
[1755036426803,0.98195902,119860.0,119850.0,0.2020789]
[1755036429711,0.6209219,119860.0,119850.0,0.2020789]
[1755036429913,0.98195902,119860.0,119850.0,0.2020789]
[1755036430613,0.98195902,119860.0,119850.0,0.9267589]
[1755036430813,0.98195902,119860.0,119850.0,0.1094789]
[1755036431013,0.6209219,119860.0,119850.0,0.1094789]
[1755036431206,0.98195902,119860.0,119850.0,0.1427489]
[1755036432315,0.98195902,119860.0,119850.0,0.1518289]
[1755036432508,0.98195902,119860.0,119850.0,0.1655589]
[1755036432710,0.98195902,119860.0,119850.0,0.2020789]
[1755036432911,0.6209219,119860.0,119850.0,0.2020789]
[1755036433112,0.98195902,119860.0,119850.0,0.2020789]
[1755036433616,0.6209219,119860.0,119850.0,0.2020789]
[1755036433807,0.5976019,119860.0,119850.0,0.2020789]
[1755036434010,0.6209219,119860.0,119850.0,0.2020789]
[1755036434208,0.4718,119860.0,119850.0,0.56311602]
[1755036435119,0.4818,119860.0,119850.0,0.56311602]
[1755036435307,0.001,119860.0,119850.0,0.56311602]
[1755036437420,0.13362,119860.0,119850.0,0.56311602]
[1755036437617,0.14375,119860.0,119850.0,0.2020789]
[1755036437832,0.02362,119860.0,119850.0,0.2020789]
[1755036438020,0.001,119860.0,119850.0,0.56311602]
[1755036438318,0.121,119860.0,119850.0,0.56311602]
[1755036438515,0.127,119860.0,119850.0,0.2020789]
[1755036438717,0.127,119860.0,119850.0,0.56311602]
[1755036438918,0.14752,119860.0,119850.0,0.56311602]
[1755036439709,0.16336,119860.0,119850.0,0.56311602]
[1755036439931,0.2468019,119860.0,119850.0,0.56311602]
[1755036440419,0.2468019,119860.0,119850.0,0.2020789]
[1755036441021,0.96863902,119860.0,119850.0,0.2020789]
[1755036441218,0.99195902,119860.0,119850.0,0.2020789]
[1755036441522,0.54771712,119860.0,119850.0,1.0190389]
[1755036441717,0.13979288,119860.0,119850.0,1.38007602]
[1755036442115,0.16241288,119860.0,119850.0,1.38007602]
[1755036442317,0.16631288,119860.0,119850.0,1.38007602]
[1755036442629,0.26559488,119860.0,119850.0,1.0190389]
[1755036443427,0.62639488,119860.0,119850.0,1.0190389]
[1755036444327,0.54295288,119860.0,119850.0,1.0190389]
[1755036444826,0.52944288,119860.0,119850.0,1.0190389]
[1755036446020,0.61288488,119860.0,119850.0,1.0190389]
[1755036446215,0.62639488,119860.0,119850.0,1.0190389]
[1755036446418,0.54295288,119860.0,119850.0,1.0190389]
[1755036446725,0.53334288,119860.0,119850.0,1.0190389]
[1755036448624,0.50059288,119860.0,119850.0,1.0190389]
[1755036448830,0.01979288,119860.0,119850.0,1.80295755]
[1755036450625,0.12979288,119860.0,119850.0,1.44215755]
[1755036450928,0.12979288,119860.0,119850.0,1.0190389]
[1755036451320,0.17079288,119860.0,119850.0,1.0188389]
[1755036451521,0.55443288,119860.0,119850.0,1.0188389]
[1755036451823,0.63787488,119860.0,119850.0,1.0188389]
[1755036454337,1.06099353,119860.0,119850.0,0.9718389]
[1755036454632,1.06099353,119860.0,119850.0,1.0190289]
[1755036455229,0.63787488,119860.0,119850.0,1.0190289]
[1755036456822,1.06099353,119860.0,119850.0,1.0190289]
[1755036457226,1.06099353,119860.0,119850.0,0.81976]
[1755036457422,1.06099353,119860.0,119850.0,0.003]
[1755036460029,0.1145559,119840.0,119830.0,0.2738269]
[1755036460224,0.9880559,119840.0,119830.0,0.9834046]
[1755036460432,0.1464698,119820.0,119810.0,1.186391]
[1755036460732,1.05038845,119820.0,119810.0,1.186391]
[1755036460926,0.6272698,119820.0,119810.0,1.186391]
[1755036461325,0.6272698,119820.0,119810.0,1.19474872]
[1755036461645,0.6052698,119820.0,119810.0,1.19474872]
[1755036462033,0.6072698,119820.0,119810.0,1.19874872]
[1755036463136,0.6072698,119820.0,119810.0,1.20174872]
[1755036463337,0.6072698,119820.0,119810.0,0.38530872]
[1755036463634,0.6072698,119820.0,119810.0,1.20166872]
[1755036465536,0.4828,119820.0,119810.0,1.56304193]
[1755036465734,0.4828,119820.0,119810.0,1.20166872]
[1755036465938,0.5662698,119820.0,119810.0,1.20166872]
[1755036466132,0.4828,119820.0,119810.0,1.20166872]
[1755036467541,0.6072698,119820.0,119810.0,1.20166872]
[1755036467741,0.96864301,119820.0,119810.0,1.20166872]
[1755036467942,0.99064301,119820.0,119810.0,1.20166872]
[1755036468343,0.99064301,119820.0,119810.0,1.193271]
[1755036468537,0.99064301,119820.0,119810.0,0.9902663]
[1755036468731,1.41369667,119820.0,119810.0,0.82332]
[1755036468932,1.41369667,119820.0,119810.0,0.9400968]
[1755036469139,1.41369667,119820.0,119810.0,0.9872868]
[1755036469542,1.41369667,119820.0,119810.0,0.9726868]
[1755036469842,1.41369667,119820.0,119810.0,1.0117268]
[1755036470039,1.41369667,119820.0,119810.0,1.0263268]
[1755036470040,0.9680698,119820.0,119810.0,1.0263268]
[1755036471044,0.9900698,119820.0,119810.0,1.0263268]
[1755036472940,0.9641698,119820.0,119810.0,1.0263268]
[1755036473143,0.5937598,119820.0,119810.0,1.0263268]
[1755036473641,0.5815298,119820.0,119810.0,1.0263268]
[1755036473847,0.5662698,119820.0,119810.0,1.0263268]
[1755036475647,0.5662698,119820.0,119810.0,1.02641932]
[1755036475847,0.4828,119820.0,119810.0,1.02641932]
[1755036476242,0.4828,119820.0,119810.0,1.45004619]
[1755036476647,0.4828,119820.0,119810.0,1.02641932]
[1755036476843,0.132,119820.0,119810.0,1.02641932]
[1755036477349,0.002,119820.0,119810.0,1.02641932]
[1755036477745,0.37916862,119840.0,119830.0,0.1795529]
[1755036477949,0.50916862,119840.0,119830.0,1.0189929]
[1755036479041,0.51116862,119840.0,119830.0,1.0199929]
[1755036479744,0.51116862,119840.0,119830.0,1.3807929]
[1755036479745,0.15036862,119840.0,119830.0,1.3807929]
[1755036479947,0.15036862,119840.0,119830.0,1.0199929]
[1755036480652,0.02036862,119840.0,119830.0,1.0199929]
[1755036481353,0.13036862,119840.0,119830.0,1.0199929]
[1755036481751,0.15036862,119840.0,119830.0,1.0199929]
[1755036482951,0.02036862,119840.0,119830.0,1.0199929]
[1755036483157,0.15036862,119840.0,119830.0,1.0199929]
[1755036483552,0.02036862,119840.0,119830.0,1.0199929]
[1755036483750,0.13036862,119840.0,119830.0,1.0199929]
[1755036485260,0.02036862,119840.0,119830.0,1.0199929]
[1755036485456,0.12036862,119840.0,119830.0,1.0199929]
[1755036485952,0.48116862,119840.0,119830.0,1.0199929]
[1755036486852,0.14036862,119840.0,119830.0,1.0199929]
[1755036487257,0.122,119840.0,119830.0,1.44361977]
[1755036487460,0.002,119840.0,119830.0,1.44361977]
[1755036487762,0.3608,119850.0,119840.0,0.2013059]
[1755036488058,0.4908,119850.0,119840.0,0.62493277]
[1755036488253,0.4908,119850.0,119840.0,0.2013059]
[1755036488855,0.3608,119850.0,119840.0,0.62493277]
[1755036489058,0.3008,119850.0,119840.0,0.62493277]
[1755036489559,0.3608,119860.0,119840.0,0.79184017]
[1755036489758,0.3608,119870.0,119860.0,0.04802]
[1755036489957,0.54523,119870.0,119860.0,0.2012921]
[1755036490158,0.56799,119870.0,119860.0,0.2012921]
[1755036491859,0.56899,119870.0,119860.0,0.2012921]
[1755036492267,0.6757851,119870.0,119860.0,1.0163321]
[1755036492762,0.6767851,119870.0,119860.0,1.0193321]
[1755036493670,0.59335,119870.0,119860.0,1.0193321]
[1755036493968,0.6767851,119870.0,119860.0,1.02758794]
[1755036494468,1.03785401,119870.0,119860.0,1.02758794]
[1755036494765,0.6767851,119870.0,119860.0,1.02758794]
[1755036496959,1.03785401,119870.0,119860.0,1.02758794]
[1755036498659,1.03785401,119870.0,119860.0,0.82593584]
[1755036498865,1.03785401,119870.0,119860.0,0.96647824]
[1755036499060,1.03785401,119870.0,119860.0,0.01208]
[1755036499267,1.39865401,119870.0,119860.0,0.81756]
[1755036500366,1.39865401,119870.0,119860.0,0.9010024]
[1755036501967,1.39865401,119870.0,119860.0,0.9581024]
[1755036502367,1.39865401,119870.0,119860.0,0.9099224]
[1755036503367,1.39865401,119870.0,119860.0,0.9237524]
[1755036504267,1.39865401,119870.0,119860.0,0.9579424]
[1755036504464,1.39865401,119870.0,119860.0,0.9796224]
[1755036504969,1.39865401,119870.0,119860.0,0.9949624]
[1755036507374,1.39865401,119870.0,119860.0,0.1805624]
[1755036507565,1.39865401,119870.0,119860.0,0.9945624]
[1755036509175,1.39865401,119870.0,119860.0,0.003]
[1755036509667,0.2018794,119850.0,119840.0,0.4513728]
[1755036509871,0.2718794,119850.0,119840.0,1.2652128]
[1755036510072,0.6326794,119850.0,119840.0,1.2652128]
[1755036512273,0.6346794,119850.0,119840.0,1.2662128]
[1755036513179,0.6346794,119850.0,119840.0,1.27450467]
[1755036514676,0.6346794,119850.0,119840.0,1.19105097]
[1755036516075,0.6346794,119850.0,119840.0,0.29375727]
[1755036516268,0.99574831,119850.0,119840.0,1.10731727]
[1755036517774,0.6346794,119850.0,119840.0,1.10731727]
[1755036517968,0.99574831,119850.0,119840.0,1.10731727]
[1755036518679,0.6346794,119850.0,119840.0,1.10731727]
[1755036519275,0.5788394,119850.0,119840.0,1.10731727]
[1755036519473,0.6109294,119850.0,119840.0,1.10731727]
[1755036519675,0.49539,119850.0,119840.0,1.46838618]
[1755036519972,0.45679,119850.0,119840.0,1.46838618]
[1755036520874,0.002,119850.0,119840.0,1.82918618]
[1755036521274,0.002,119850.0,119840.0,1.46811727]
[1755036521777,0.002,119850.0,119840.0,1.82918618]
[1755036522366,0.002,119850.0,119840.0,2.19025509]
[1755036522573,0.002,119850.0,119840.0,1.82918618]
[1755036522790,0.002,119850.0,119840.0,1.46811727]
[1755036522972,0.002,119850.0,119840.0,1.82918618]
[1755036525170,0.002,119850.0,119840.0,1.82842618]
[1755036527475,0.132,119850.0,119840.0,1.82842618]
[1755036527676,0.002,119850.0,119840.0,1.82842618]
[1755036528087,0.112,119850.0,119840.0,1.82842618]
[1755036528288,0.112,119850.0,119840.0,1.46735727]
[1755036528472,0.14599,119850.0,119840.0,1.46735727]
[1755036528780,0.14599,119850.0,119840.0,1.82842618]
[1755036528975,0.21668,119850.0,119840.0,1.10655727]
[1755036529681,0.23056,119850.0,119840.0,1.10655727]
[1755036529877,0.63897841,119850.0,119840.0,0.29375727]
[1755036530083,0.68494841,119850.0,119840.0,1.08255727]
[1755036530382,1.04574841,119850.0,119840.0,1.08255727]
[1755036530581,1.04574841,119850.0,119840.0,1.10615727]
[1755036532478,1.06421724,119850.0,119840.0,0.27015727]
[1755036532685,1.06421724,119850.0,119840.0,1.06617727]
[1755036536987,0.70314833,119850.0,119840.0,1.06617727]
[1755036537187,1.06421724,119850.0,119840.0,1.06617727]
[1755036537384,1.06421724,119850.0,119840.0,1.08977727]
[1755036538184,1.06421724,119850.0,119840.0,0.20771727]
[1755036538385,1.06421724,119850.0,119840.0,1.05220727]
[1755036538586,1.06421724,119850.0,119840.0,1.06577727]
[1755036538786,1.06421724,119850.0,119840.0,1.0574854]
[1755036539084,1.06421724,119850.0,119840.0,0.1773054]
[1755036539589,1.06421724,119850.0,119840.0,0.9890654]
[1755036539789,1.06421724,119850.0,119840.0,1.0026954]
[1755036539984,1.06421724,119850.0,119840.0,1.0369954]
[1755036540180,1.06421724,119850.0,119840.0,0.9796654]
[1755036540385,1.06421724,119850.0,119840.0,0.1679054]
[1755036540577,1.06421724,119850.0,119840.0,0.001]
[1755036540786,1.28109724,119850.0,119840.0,0.001]
[1755036540984,0.2016304,119820.0,119810.0,0.08356642]
[1755036541184,1.40429931,119820.0,119810.0,0.14064992]
[1755036541390,1.42263057,119820.0,119810.0,9.252e-05]
[1755036542387,1.42263057,119820.0,119810.0,0.08356992]
[1755036542581,1.42463057,119820.0,119810.0,0.08456992]
[1755036543484,1.42263057,119820.0,119810.0,0.08356992]
[1755036543683,1.42363057,119820.0,119810.0,0.08456992]
[1755036543884,1.06256166,119820.0,119810.0,0.08456992]
[1755036544085,1.42363057,119820.0,119810.0,0.08456992]
[1755036544384,1.49157927,119820.0,119810.0,0.08456992]
[1755036545092,1.49257927,119820.0,119810.0,0.08456992]
[1755036546594,1.13177927,119820.0,119810.0,0.08456992]
[1755036546792,0.70276166,119820.0,119810.0,0.20254992]
[1755036549595,1.06383057,119820.0,119810.0,0.20254992]
[1755036550999,0.70276166,119820.0,119810.0,0.20254992]
[1755036551196,1.06383057,119820.0,119810.0,0.20254992]
[1755036552298,1.06383057,119820.0,119810.0,0.17877992]
[1755036556503,1.06383057,119820.0,119810.0,0.00109252]
[1755036556700,1.06383057,119820.0,119810.0,0.08457052]
[1755036557119,1.06383057,119820.0,119810.0,0.00109252]
[1755036557296,1.87479057,119820.0,119810.0,0.00109252]
[1755036558502,1.88315717,119820.0,119810.0,0.00109252]
[1755036559006,1.87479057,119820.0,119810.0,0.00109252]
[1755036559803,1.87479057,119820.0,119810.0,0.08457052]
[1755036560209,0.70276166,119820.0,119810.0,0.08457052]
[1755036560400,1.06383057,119820.0,119810.0,0.14165052]
[1755036560600,1.06383057,119820.0,119810.0,0.08457052]
[1755036562406,1.06383057,119820.0,119810.0,0.084478]
[1755036563007,1.06383057,119820.0,119810.0,0.130758]
[1755036563204,1.06383057,119820.0,119810.0,0.178688]
[1755036563394,1.06383057,119820.0,119810.0,0.202458]
[1755036563395,0.70276166,119820.0,119810.0,0.202458]
[1755036564405,1.06383057,119820.0,119810.0,0.202458]
[1755036564606,1.06383057,119820.0,119810.0,0.178688]
[1755036567106,1.04549931,119820.0,119810.0,0.178688]
[1755036569309,1.04549931,119820.0,119810.0,0.17878052]
[1755036569520,1.04549931,119820.0,119810.0,0.08457052]
[1755036571211,1.04549931,119820.0,119810.0,0.00109252]
[1755036571405,1.04549931,119820.0,119810.0,0.08457052]
[1755036571910,0.6844304,119820.0,119810.0,0.08457052]
[1755036572104,1.04549931,119820.0,119810.0,0.08457052]
[1755036572408,1.04549931,119820.0,119810.0,0.00109252]
[1755036575312,1.04549931,119820.0,119810.0,0.08457052]
[1755036576514,1.04549931,119820.0,119810.0,0.17866052]
[1755036576906,1.04549931,119820.0,119810.0,0.20331052]
[1755036578011,1.04549931,119820.0,119810.0,0.17866052]
[1755036579619,0.6844304,119820.0,119810.0,0.20331052]
[1755036580103,0.6844304,119820.0,119810.0,0.17866052]
[1755036580504,1.04549931,119820.0,119810.0,0.17866052]
[1755036581928,0.6844304,119820.0,119810.0,0.17866052]
[1755036582226,1.04549931,119820.0,119810.0,0.17866052]
[1755036582429,1.04549931,119820.0,119810.0,0.20331052]
[1755036582727,0.6844304,119820.0,119810.0,0.17866052]
[1755036582923,0.6844304,119820.0,119810.0,0.20331052]
[1755036583429,1.04549931,119820.0,119810.0,0.17866052]
[1755036584323,1.04549931,119820.0,119810.0,0.20331052]
[1755036585225,1.04549931,119820.0,119810.0,0.17866052]
[1755036586034,1.04549931,119820.0,119810.0,0.20331052]
[1755036587038,1.04549931,119820.0,119810.0,0.17866052]
[1755036587729,1.04549931,119820.0,119810.0,0.20331052]
[1755036588031,0.6844304,119820.0,119810.0,1.01215052]
[1755036588436,0.60096,119820.0,119810.0,1.37321943]
[1755036588634,0.60096,119820.0,119810.0,1.01215052]
[1755036588933,0.58687,119820.0,119810.0,1.37321943]
[1755036589135,2.08687,119820.0,119810.0,1.37321943]
[1755036591034,1.72607,119820.0,119810.0,1.37321943]
[1755036591734,1.69397,119820.0,119810.0,1.37321943]
[1755036592234,1.74151,119820.0,119810.0,1.37321943]
[1755036592432,1.74151,119820.0,119810.0,1.52315108]
[1755036593237,1.74151,119820.0,119810.0,1.37321943]
[1755036595626,1.74151,119820.0,119810.0,1.73401943]
[1755036596534,0.122,119820.0,119810.0,1.73401943]
[1755036596835,0.0944,119830.0,119820.0,0.2022113]
[1755036597037,1.7244,119830.0,119820.0,0.56328021]
[1755036597338,1.60833,119830.0,119820.0,0.56328021]
[1755036597536,1.71833,119830.0,119820.0,0.56328021]
[1755036598234,1.71933,119830.0,119820.0,0.56328021]
[1755036599142,1.72233,119830.0,119820.0,0.56328021]
[1755036599641,1.72233,119830.0,119820.0,0.92408021]
[1755036600228,0.38387,119850.0,119820.0,0.90143021]
[1755036600435,0.58686,119850.0,119840.0,0.56057631]
[1755036600737,0.6703105,119850.0,119840.0,0.56057631]
[1755036600932,1.05444941,119850.0,119840.0,0.0933274]
[1755036601132,1.05444941,119850.0,119840.0,0.9010474]
[1755036602338,1.05644941,119850.0,119840.0,0.9020474]
[1755036602838,1.05644941,119850.0,119840.0,0.91058489]
[1755036603842,1.05444941,119850.0,119840.0,0.90958489]
[1755036604038,1.05544941,119850.0,119840.0,0.91158489]
[1755036605045,0.6943805,119850.0,119840.0,0.91158489]
[1755036605846,0.61093,119850.0,119840.0,0.99498489]
[1755036606249,0.6943807,119850.0,119840.0,0.99498489]
[1755036609838,0.61093,119850.0,119840.0,0.99498489]
[1755036610042,0.6943807,119850.0,119840.0,0.99498489]
[1755036610943,0.61093,119850.0,119840.0,1.01776489]
[1755036611446,0.6943807,119850.0,119840.0,1.01776489]
[1755036611864,0.6943807,119850.0,119840.0,0.90171489]
[1755036612145,1.05544961,119850.0,119840.0,0.11753489]
[1755036612439,1.05544961,119850.0,119840.0,0.8921374]
[1755036613035,0.6943807,119850.0,119840.0,0.8921374]
[1755036613239,1.05544961,119850.0,119840.0,0.9696274]
[1755036613434,0.6943807,119850.0,119840.0,0.1787274]
[1755036613747,0.6943807,119850.0,119840.0,0.9853274]
[1755036615345,0.6943807,119850.0,119840.0,0.99376054]
[1755036615542,1.05544961,119850.0,119840.0,0.99376054]
[1755036616041,0.61093,119850.0,119840.0,0.99376054]
[1755036616242,0.61093,119850.0,119840.0,1.01654054]
[1755036616442,0.59667,119850.0,119840.0,1.37760945]
[1755036616942,0.23587,119850.0,119840.0,1.37760945]
[1755036617250,0.16998,119850.0,119840.0,1.37760945]
[1755036617446,0.22678,119850.0,119840.0,1.37760945]
[1755036617640,0.24104,119850.0,119840.0,1.37760945]
[1755036617948,0.25013,119850.0,119840.0,1.37760945]
[1755036619260,0.131,119850.0,119840.0,1.37760945]
[1755036619548,0.23587,119850.0,119840.0,0.99376054]
[1755036619943,0.3335808,119850.0,119840.0,1.01654054]
[1755036620252,2.55544971,119850.0,119840.0,0.90988054]
[1755036620453,2.55544971,119850.0,119840.0,0.99328054]
[1755036622055,2.55544971,119850.0,119840.0,0.8915774]
[1755036622247,2.55544971,119850.0,119840.0,0.8914574]
[1755036622447,2.55544971,119850.0,119840.0,0.89997698]
[1755036623252,2.55544971,119850.0,119840.0,0.90984698]
[1755036623453,2.55544971,119850.0,119840.0,0.97746698]
[1755036624055,2.55544971,119850.0,119840.0,0.99324698]
[1755036624248,2.55544971,119850.0,119840.0,0.9847274]
[1755036624654,2.55544971,119850.0,119840.0,0.9689474]
[1755036628656,2.55544971,119850.0,119840.0,0.9013274]
[1755036630260,2.1943808,119850.0,119840.0,0.9013274]
[1755036630462,2.55544971,119850.0,119840.0,0.9013274]
[1755036631458,2.1943808,119850.0,119840.0,0.9013274]
[1755036631659,2.55544971,119850.0,119840.0,0.9013274]
[1755036634664,2.1943808,119850.0,119840.0,0.9013274]
[1755036634869,2.55544971,119850.0,119840.0,0.9153574]
[1755036635167,2.55544971,119850.0,119840.0,0.9856374]
[1755036638967,2.1943808,119850.0,119840.0,0.9856374]
[1755036640266,2.21322716,119850.0,119840.0,0.9856374]
[1755036640861,2.57429607,119850.0,119840.0,0.9856374]
[1755036644171,2.21322716,119850.0,119840.0,0.9856374]
[1755036644370,2.57429607,119850.0,119840.0,0.9856374]
[1755036644968,2.51611607,119850.0,119840.0,0.9856374]
[1755036645168,2.55045607,119850.0,119840.0,1.0094074]
[1755036645369,2.56447607,119850.0,119840.0,1.0094074]
[1755036646173,2.56447607,119850.0,119840.0,0.9856374]
[1755036647762,0.65504716,119850.0,119840.0,1.0094074]
[1755036647962,0.68938746,119850.0,119840.0,1.0094074]
[1755036648364,2.03203,119850.0,119840.0,1.37047631]
[1755036648564,0.40916,119860.0,119840.0,2.2572665]
[1755036648565,0.3608,119860.0,119840.0,2.2572665]
[1755036648872,0.45775,119870.0,119860.0,0.2009242]
[1755036649073,0.58177,119870.0,119860.0,1.0045642]
[1755036649273,0.5911,119870.0,119860.0,1.0045642]
[1755036650174,0.5951,119870.0,119860.0,1.0055642]
[1755036651176,0.58108,119870.0,119860.0,1.0055642]
[1755036652381,0.6785372,119870.0,119860.0,1.0055642]
[1755036653179,1.03960611,119870.0,119860.0,0.0844442]
[1755036653402,1.03960611,119870.0,119860.0,0.8877642]
[1755036654381,1.40040611,119870.0,119860.0,0.8876842]
[1755036656278,1.40040611,119870.0,119860.0,0.0844442]
[1755036656467,2.20352611,119870.0,119860.0,0.0844442]
[1755036660688,2.20352611,119870.0,119860.0,0.0938442]
[1755036661278,0.0834512,119850.0,119840.0,0.2503715]
[1755036661480,1.03517011,119850.0,119840.0,0.9695138]
[1755036661881,1.05372927,119850.0,119840.0,0.1669138]
[1755036662576,1.05372927,119850.0,119840.0,0.1679138]
[1755036662776,1.05472927,119850.0,119840.0,0.1699138]
[1755036663485,1.41552927,119850.0,119840.0,0.1699138]
[1755036666883,1.41552927,119850.0,119840.0,0.0864561]
[1755036667081,0.203322,119820.0,119810.0,0.36793082]
[1755036667385,1.05519091,119820.0,119810.0,1.17001082]
[1755036667989,0.694122,119820.0,119810.0,1.17001082]
[1755036668175,0.694122,119820.0,119810.0,1.17301082]
[1755036668487,0.695122,119820.0,119810.0,1.18618697]
[1755036668887,0.5752721,119820.0,119810.0,1.54725588]
[1755036669182,0.6085721,119820.0,119810.0,1.54725588]
[1755036669386,0.6476321,119820.0,119810.0,1.18618697]
[1755036669687,0.6476321,119820.0,119810.0,1.54725588]
[1755036670088,0.6476321,119820.0,119810.0,1.18618697]
[1755036670282,0.6712421,119820.0,119810.0,1.54725588]
[1755036670484,0.6712421,119820.0,119810.0,1.18618697]
[1755036671176,0.6853721,119820.0,119810.0,1.18618697]
[1755036671384,0.6951221,119820.0,119810.0,1.18618697]
[1755036671789,0.3343221,119820.0,119810.0,1.18618697]
[1755036672283,0.6951221,119820.0,119810.0,1.18618697]
[1755036674689,1.05619101,119820.0,119810.0,1.18618697]
[1755036675089,0.6951221,119820.0,119810.0,1.18618697]
[1755036676490,1.05619101,119820.0,119810.0,1.18618697]
[1755036676878,0.6951221,119820.0,119810.0,1.18618697]
[1755036677082,1.05619101,119820.0,119810.0,1.18618697]
[1755036678690,0.6951221,119820.0,119810.0,1.18618697]
[1755036682492,1.05619101,119820.0,119810.0,1.18618697]
[1755036682890,0.6951221,119820.0,119810.0,1.18618697]
[1755036683097,1.05619101,119820.0,119810.0,1.18618697]
[1755036684092,1.12418645,119820.0,119810.0,1.00096232]
[1755036684392,1.13251612,119820.0,119810.0,0.09156662]
[1755036684599,1.06452068,119820.0,119810.0,0.09156662]
[1755036684790,1.85695101,119820.0,119810.0,0.09156662]
[1755036685790,1.85695101,119820.0,119810.0,0.08756662]
[1755036686693,1.85695101,119820.0,119810.0,0.08456662]
[1755036686896,1.85695101,119820.0,119810.0,0.08656662]
[1755036687499,1.85695101,119820.0,119810.0,0.08456662]
[1755036688193,1.85695101,119820.0,119810.0,0.08457152]
[1755036688392,1.85695101,119820.0,119810.0,0.084479]
[1755036688592,1.92519351,119820.0,119810.0,0.001]
[1755036689800,1.92519351,119820.0,119810.0,0.084479]
[1755036690796,1.92519351,119820.0,119810.0,0.08457152]
[1755036693503,1.92519351,119820.0,119810.0,0.00109252]
[1755036695099,1.92519351,119820.0,119790.0,0.2504766]
[1755036695295,1.28482491,119800.0,119790.0,0.3679588]
[1755036695496,1.41482491,119800.0,119790.0,0.3985888]
[1755036695802,1.41482491,119800.0,119790.0,0.44129309]
[1755036696205,1.41482491,119800.0,119790.0,0.46381309]
[1755036696403,1.055756,119800.0,119790.0,0.46581309]
[1755036697904,1.055756,119800.0,119790.0,0.46781309]
[1755036698107,1.41682491,119800.0,119790.0,0.46781309]
[1755036699306,1.41682491,119800.0,119790.0,0.38432089]
[1755036699501,1.43533769,119800.0,119790.0,0.38432089]
[1755036700306,1.43533769,119800.0,119790.0,0.209113]
[1755036700605,1.43533769,119800.0,119790.0,0.087493]